bitfinex-derivatives/quotes_SOLF0:USTF0_20241231
["timestamp","ask_amount","ask_price","bid_price","bid_amount"]
[1735632921538,11.46288942,190.47,190.4,8.48288942]
[1735632921740,11.46288942,190.47,190.39,1.5259]
[1735632922350,2.6292,190.46,190.42,2.6297]
[1735632922845,2.98,190.47,190.45,2.6292]
[1735632923243,8.48288942,190.49,190.45,2.6292]
[1735632923445,2.6282,190.54,190.49,2.6287]
[1735632923749,2.98,190.53,190.46,8.48288942]
[1735632924142,2.98,190.53,190.51,2.6285]
[1735632925049,11.46288942,190.54,190.51,2.6285]
[1735632925249,11.46288942,190.55,190.51,2.6285]
[1735632926745,2.6285,190.52,190.46,12.59038942]
[1735632927043,1.60496125,190.51,190.46,9.96118942]
[1735632927250,0.80247796,190.51,190.46,9.96118942]
[1735632927651,0.80247796,190.51,190.47,2.629]
[1735632928049,0.80247796,190.51,190.46,9.96118942]
[1735632928050,0.80247796,190.51,190.5,2.6287]
[1735632930251,2.6282,190.54,190.5,2.6287]
[1735632931951,2.98,190.55,190.52,2.6284]
[1735632932252,8.48288942,190.57,190.52,2.6284]
[1735632932447,0.80220596,190.56,190.52,2.6284]
[1735632933454,0.80220596,190.56,190.48,8.48288942]
[1735632933755,0.80220596,190.56,190.52,2.6284]
[1735632934459,14.09068942,190.57,190.52,2.6284]
[1735632934759,0.80220333,190.56,190.52,2.6284]
[1735632936649,0.80220333,190.56,190.48,8.48288942]
[1735632936855,3.43020333,190.56,190.51,2.6284]
[1735632937057,0.80220333,190.55,190.51,2.6284]
[1735632937259,2.6282,190.54,190.46,1.4783]
[1735632937455,2.6282,190.54,190.47,8.48288942]
[1735632937656,2.6282,190.54,190.46,1.4783]
[1735632937955,2.6282,190.54,190.49,2.6287]
[1735632938462,2.6282,190.54,190.47,8.48288942]
[1735632938662,2.6282,190.54,190.5,2.6287]
[1735632939661,11.11118942,190.53,190.48,2.6288]
[1735632939959,2.98,190.52,190.46,1.4783]
[1735632940464,2.98,190.52,190.48,2.6289]
[1735632940666,2.98,190.52,190.46,1.4783]
[1735632941162,2.98,190.52,190.49,2.6287]
[1735632944566,2.98,190.52,190.5,2.6287]
[1735632944960,8.48288942,190.51,190.43,1.6165]
[1735632945162,8.48288942,190.49,190.43,1.6165]
[1735632946566,11.11178942,190.49,190.45,2.6293]
[1735632947980,8.48288942,190.47,190.43,4.246]
[1735632948370,11.46288942,190.47,190.43,4.246]
[1735632948670,11.46288942,190.47,190.39,15.74430026]
[1735632948860,8.48288942,190.45,190.39,15.74430026]
[1735632949062,8.48288942,190.45,190.39,8.48288942]
[1735632949371,11.11238942,190.45,190.41,2.6299]
[1735632949565,8.48288942,190.45,190.39,8.48288942]
[1735632950075,8.48288942,190.45,190.42,2.6297]
[1735632951069,8.48288942,190.45,190.39,8.48288942]
[1735632951279,8.48288942,190.47,190.41,8.48288942]
[1735632951573,8.48288942,190.47,190.42,1.5734]
[1735632952575,2.98,190.48,190.42,1.5734]
[1735632952874,11.46288942,190.48,190.42,1.5734]
[1735632954375,14.09188942,190.48,190.43,2.6296]
[1735632954574,8.48288942,190.46,190.38,37.30091716]
[1735632955079,8.48288942,190.46,190.42,2.6298]
[1735632957076,2.6291,190.47,190.42,2.6298]
[1735632957389,11.11198942,190.47,190.42,2.6298]
[1735632959990,8.48288942,190.47,190.44,2.6295]
[1735632960182,8.48288942,190.49,190.42,8.48288942]
[1735632960985,11.11178942,190.49,190.44,2.6294]
[1735632961784,2.6289,190.49,190.44,2.6294]
[1735632961986,8.48288942,190.48,190.44,2.6294]
[1735632962290,2.6289,190.49,190.45,2.6294]
[1735632962482,11.11178942,190.49,190.41,8.48288942]
[1735632962886,8.48288942,190.49,190.44,2.6295]
[1735632963081,2.629,190.48,190.44,2.6295]
[1735632963287,2.629,190.48,190.43,2.6296]
[1735632963584,2.96,190.5,190.38,7.26141084]
[1735632963789,11.11208942,190.47,190.39,13.36804678]
[1735632963990,11.11208942,190.47,190.42,2.6297]
[1735632964190,2.6292,190.47,190.39,8.48288942]
[1735632964394,11.11208942,190.47,190.39,8.48288942]
[1735632964988,11.11208942,190.47,190.41,8.48288942]
[1735632965190,11.11208942,190.47,190.43,2.6296]
[1735632965397,11.11208942,190.47,190.41,8.48288942]
[1735632965793,8.48288942,190.47,190.41,8.48288942]
[1735632966287,8.48288942,190.47,190.44,2.6294]
[1735632966788,11.11198942,190.47,190.41,8.48288942]
[1735632966991,11.11198942,190.47,190.42,2.6297]
[1735632967885,8.48288942,190.47,190.41,8.48288942]
[1735632968087,8.48288942,190.49,190.41,8.48288942]
[1735632968390,11.11188942,190.49,190.44,2.6294]
[1735632968786,8.48288942,190.49,190.44,2.6294]
[1735632970499,2.629,190.48,190.44,2.6294]
[1735632970689,2.96,190.5,190.45,2.6293]
[1735632970888,11.44288942,190.5,190.45,2.6293]
[1735632971284,2.6288,190.49,190.45,2.6293]
[1735632971590,11.44288942,190.5,190.44,2.6295]
[1735632971895,8.48288942,190.48,190.44,2.6295]
[1735632972484,11.11188942,190.48,190.44,2.6295]
[1735632975196,11.11188942,190.48,190.45,2.6294]
[1735632977490,2.629,190.48,190.45,2.6294]
[1735632979095,8.48288942,190.49,190.39,28.81802774]
[1735632979290,8.48288942,190.47,190.4,7.26141084]
[1735632979696,2.6294,190.45,190.4,9.89141084]
[1735632980103,2.6294,190.45,190.4,2.63]
[1735632980902,2.6292,190.46,190.4,8.48288942]
[1735632981801,8.48288942,190.47,190.4,8.48288942]
[1735632982100,8.48288942,190.47,190.4,15.74430026]
[1735632982903,8.48288942,190.47,190.43,2.6295]
[1735632984302,8.48288942,190.47,190.4,15.74430026]
[1735632984502,8.48288942,190.47,190.44,2.6295]
[1735632985209,2.96,190.55,190.44,8.48288942]
[1735632985403,2.96,190.55,190.45,1.5506]
[1735632985404,8.48288942,190.52,190.45,1.5506]
[1735632985703,0.8025502,190.51,190.49,2.6288]
[1735632985908,8.48288942,190.52,190.49,2.6288]
[1735632986205,8.48288942,190.52,190.45,3.0446]
[1735632986408,2.628,190.56,190.46,8.48288942]
[1735632986610,0.8022818,190.55,190.46,8.48288942]
[1735632986808,2.628,190.56,190.47,4.88922676]
[1735632987111,9.28512587,190.55,190.46,8.48288942]
[1735632987312,8.48288942,190.55,190.47,4.88905398]
[1735632987507,11.11098942,190.55,190.49,2.6288]
[1735632987906,2.6281,190.55,190.49,2.6288]
[1735632988105,11.11098942,190.54,190.49,2.6288]
[1735632989109,8.48288942,190.54,190.49,2.6288]
[1735632989311,2.6286,190.51,190.46,2.6292]
[1735632989807,2.6286,190.51,190.45,20.29070026]
[1735632990011,11.11128942,190.52,190.47,2.6291]
[1735632990911,11.11128942,190.52,190.48,2.629]
[1735632992514,2.6287,190.5,190.46,7.51647079]
[1735632992710,2.6287,190.5,190.46,4.88737079]
[1735632992711,8.48288942,190.5,190.46,4.88737079]
[1735632993108,2.6289,190.49,190.46,4.88737079]
[1735632993712,2.6287,190.51,190.46,7.51657079]
[1735632993913,0.80250202,190.5,190.46,7.51657079]
[1735632994710,8.48288942,190.51,190.46,7.51657079]
[1735632994912,0.80249748,190.5,190.46,7.51657079]
[1735632995513,3.43119748,190.5,190.46,4.88737079]
[1735632995715,8.48288942,190.49,190.46,4.88737079]
[1735632996618,2.629,190.48,190.46,4.88737079]
[1735632996912,2.6291,190.47,190.46,4.88737079]
[1735632997117,11.11198942,190.47,190.46,4.88737079]
[1735632998018,11.91464059,190.47,190.46,4.88737079]
[1735632998216,9.28554059,190.47,190.42,2.6297]
[1735632998419,8.48288942,190.47,190.4,13.07488942]
[1735632998821,2.96,190.52,190.4,13.07488942]
[1735632999015,8.48288942,190.48,190.4,13.07488942]
[1735632999621,2.6291,190.47,190.42,2.6298]
[1735633000015,11.11198942,190.47,190.42,2.6298]
[1735633001221,2.6293,190.46,190.42,2.6298]
[1735633006520,2.6293,190.46,190.41,2.6299]
[1735633006717,2.6297,190.43,190.37,15.74430026]
[1735633007524,2.6297,190.43,190.37,8.48288942]
[1735633008426,2.6297,190.43,190.39,2.6301]
[1735633008824,8.48288942,190.45,190.37,8.48288942]
[1735633009126,11.11228942,190.45,190.4,2.63]
[1735633011826,2.6294,190.45,190.41,2.6299]
[1735633012722,2.96,190.47,190.39,8.48288942]
[1735633012920,11.44288942,190.47,190.39,8.48288942]
[1735633013126,2.96,190.47,190.39,8.48288942]
[1735633013424,5.5891,190.47,190.43,2.6296]
[1735633014028,2.6291,190.47,190.43,2.6296]
[1735633014627,8.48288942,190.48,190.39,8.48288942]
[1735633014829,2.6293,190.46,190.42,2.6298]
[1735633015822,8.48288942,190.48,190.41,8.48288942]
[1735633016030,3.43176121,190.47,190.43,2.6296]
[1735633016229,2.6291,190.47,190.43,2.6296]
[1735633016827,2.6291,190.47,190.42,2.6298]
[1735633018326,8.48288942,190.48,190.42,2.6298]
[1735633018526,2.6293,190.46,190.42,2.6298]
[1735633019525,2.6293,190.46,190.41,2.6299]
[1735633019925,2.6295,190.44,190.36,4.46]
[1735633020135,2.6295,190.44,190.39,8.48288942]
[1735633020334,2.96,190.49,190.41,8.48288942]
[1735633020531,91.49253978,190.62,190.43,8.48288942]
[1735633020729,91.49253978,190.62,190.45,8.48288942]
[1735633020730,8.48288942,190.52,190.45,8.48288942]
[1735633020928,0.80251219,190.51,190.45,8.48288942]
[1735633021132,91.49253978,190.62,190.45,8.48288942]
[1735633021332,3.7623726,190.61,190.49,8.48288942]
[1735633021629,2.96,190.61,190.53,2.6283]
[1735633021834,8.48288942,190.58,190.53,2.6283]
[1735633022232,8.48288942,190.58,190.51,8.48288942]
[1735633022233,0.80208395,190.57,190.51,2.6284]
[1735633022534,8.48288942,190.58,190.51,2.6284]
[1735633022835,11.11058942,190.58,190.51,2.6284]
[1735633023433,8.48288942,190.58,190.51,2.6284]
[1735633023634,8.48288942,190.56,190.48,2.6289]
[1735633023830,11.44288942,190.56,190.48,8.48288942]
[1735633024426,8.48288942,190.56,190.48,8.48288942]
[1735633024631,2.96,190.58,190.49,1.4689]
[1735633024833,9.28500637,190.57,190.49,1.4689]
[1735633025126,8.48288942,190.57,190.49,1.4689]
[1735633025330,2.6279,190.56,190.51,2.6284]
[1735633025533,1.5944,190.65,190.52,8.48288942]
[1735633025831,8.48288942,190.59,190.53,1.5756]
[1735633026431,11.11038942,190.59,190.54,2.6281]
[1735633026626,0.80207144,190.58,190.53,1.5756]
[1735633027134,8.48288942,190.57,190.53,1.5756]
[1735633027532,8.48288942,190.57,190.51,1.5599]
[1735633027533,8.48288942,190.55,190.51,1.5599]
[1735633027739,8.48288942,190.55,190.47,10.09778942]
[1735633027930,8.48288942,190.55,190.49,9.95178942]
[1735633028539,2.6281,190.54,190.49,12.58058942]
[1735633029146,8.48288942,190.58,190.51,8.48288942]
[1735633029745,8.48288942,190.58,190.54,2.628]
[1735633030042,8.48288942,190.6,190.54,2.628]
[1735633030240,8.48288942,190.6,190.56,2.6278]
[1735633030441,8.48288942,190.6,190.53,8.48288942]
[1735633030645,8.48288942,190.6,190.54,3.0495]
[1735633031540,8.48288942,190.6,190.56,2.6277]
[1735633032138,8.48288942,190.6,190.54,3.0495]
[1735633032338,14.07008942,190.62,190.54,3.0495]
[1735633032540,1.617,190.73,190.57,8.48288942]
[1735633032847,8.48288942,190.66,190.57,8.48288942]
[1735633033148,8.48288942,190.66,190.59,8.48288942]
[1735633033641,11.10938942,190.66,190.61,2.6271]
[1735633033943,8.48288942,190.74,190.65,8.48288942]
[1735633034148,0.80133175,190.73,190.69,8.48288942]
[1735633034442,8.48288942,190.76,190.69,8.48288942]
[1735633034644,0.80133405,190.75,190.69,8.48288942]
[1735633034845,0.80133405,190.74,190.69,8.48288942]
[1735633035042,8.48288942,190.76,190.69,8.48288942]
[1735633035243,0.80131104,190.75,190.69,8.48288942]
[1735633035744,0.80131104,190.75,190.69,11.10898942]
[1735633035946,0.80130427,190.74,190.69,11.10898942]
[1735633036149,1.5968,190.84,190.69,11.10898942]
[1735633036349,3.76129714,190.83,190.71,2.6258]
[1735633036551,0.80129714,190.82,190.75,8.48288942]
[1735633036749,9.28418656,190.83,190.75,8.48288942]
[1735633036947,2.6245,190.81,190.75,8.48288942]
[1735633037152,0.80129714,190.8,190.71,2.96]
[1735633037353,1.5272,190.93,190.79,8.48288942]
[1735633037655,1.5272,190.93,190.84,8.48288942]
[1735633037843,8.48288942,190.9,190.84,8.48288942]
[1735633038251,1.5272,190.93,190.81,13.20036232]
[1735633038450,0.7943839,190.92,190.81,13.20036232]
[1735633038652,0.79439227,190.91,190.81,13.20036232]
[1735633038856,2.6233,190.9,190.83,2.6241]
[1735633039052,2.6233,190.9,190.81,13.20036232]
[1735633039053,0.79439227,190.9,190.81,13.20036232]
[1735633039353,2.6227,190.94,190.86,2.6237]
[1735633039554,2.96,190.97,190.84,16.16036232]
[1735633039754,0.79426678,190.96,190.9,13.20036232]
[1735633039949,13.20036232,191.02,190.9,13.20036232]
[1735633040151,2.6222,190.98,190.89,13.20036232]
[1735633040346,1.5878,191.04,190.9,4.5145]
[1735633040347,2.96,191.0,190.9,4.5145]
[1735633041151,0.79409889,190.99,190.9,4.5145]
[1735633041354,13.20036232,190.96,190.79,28.81802774]
[1735633041552,13.20036232,190.93,190.82,13.20036232]
[1735633041754,2.6237,190.87,190.81,1.5012]
[1735633041958,2.96,190.87,190.81,1.5012]
[1735633042353,2.96,190.87,190.8,1.6182]
[1735633042557,2.96,190.87,190.79,1.4726]
[1735633042957,2.624,190.84,190.79,1.4726]
[1735633043158,2.96,190.85,190.79,1.4726]
[1735633043356,2.96,190.84,190.79,1.4726]
[1735633043555,2.6243,190.82,190.76,1.5012]
[1735633043756,2.96,190.84,190.76,1.5012]
[1735633043952,2.96,190.88,190.76,14.70156232]
[1735633044256,2.96,190.91,190.82,13.20036232]
[1735633044463,3.14,190.97,190.85,13.20036232]
[1735633044757,3.14,190.97,190.82,16.16036232]
[1735633044758,0.79430054,190.96,190.88,13.20036232]
[1735633044951,3.14,190.97,190.88,13.20036232]
[1735633045148,15.82236232,190.99,190.88,13.20036232]
[1735633045353,3.14,190.98,190.88,13.20036232]
[1735633045862,3.14,191.01,190.92,2.6229]
[1735633046361,2.6218,191.0,190.93,2.6227]
[1735633047156,3.14,191.01,190.93,2.6227]
[1735633047766,1.5815,191.08,190.92,24.23983746]
[1735633047954,3.93393958,191.07,190.93,3.14]
[1735633048262,3.14,191.07,191.01,2.6219]
[1735633048458,3.14,191.07,190.95,21.09983746]
[1735633049262,5.7612,191.07,191.0,2.6221]
[1735633049562,3.14,191.07,190.94,1.4738]
[1735633049757,2.6222,191.0,190.94,1.4738]
[1735633050058,3.14,191.01,190.94,1.4738]
[1735633050863,3.14,191.01,190.93,2.6229]
[1735633051569,2.6222,190.99,190.91,2.6232]
[1735633051767,2.6222,190.99,190.89,1.5154]
[1735633052861,5.762,191.01,190.89,1.5154]
[1735633053371,5.762,191.01,190.89,8.77681084]
[1735633053567,5.762,191.01,190.94,2.6228]
[1735633053767,3.14,191.01,190.89,8.77681084]
[1735633054470,5.762,191.01,190.89,8.77681084]
[1735633054668,5.762,191.01,190.89,1.5154]
[1735633055370,3.14,191.01,190.89,1.5154]
[1735633056166,5.762,191.01,190.94,2.6229]
[1735633056370,5.762,191.01,190.89,1.5154]
[1735633056872,5.762,191.01,190.94,2.6228]
[1735633057270,5.762,191.01,190.89,1.5154]
[1735633057469,3.14,191.01,190.97,2.6224]
[1735633058270,3.14,191.01,190.89,1.5154]
[1735633059168,21.09983746,191.07,190.89,1.5154]
[1735633059374,2.6219,191.02,190.89,1.5154]
[1735633059574,3.14,191.01,190.89,1.5154]
[1735633060975,3.14,191.01,190.9,4.54067098]
[1735633061769,3.14,191.01,190.89,8.77681084]
[1735633062775,3.14,191.01,190.89,1.5154]
[1735633063074,3.14,191.01,190.92,2.6232]
[1735633063675,3.14,191.01,190.89,8.77681084]
[1735633063870,2.6227,190.96,190.9,2.6234]
[1735633064679,5.7627,190.96,190.9,2.6234]
[1735633066678,3.14,190.96,190.92,2.6232]
[1735633067983,2.6225,190.97,190.92,2.6232]
[1735633069280,5.7623,190.98,190.92,2.6231]
[1735633069580,5.7623,190.98,190.89,501.88037495]
[1735633069980,5.7623,190.98,190.92,2.6231]
[1735633071476,2.6225,190.97,190.92,2.6231]
[1735633071881,3.14,190.98,190.89,501.88037495]
[1735633072082,3.14,190.98,190.89,500.36497495]
[1735633072480,3.14,190.98,190.88,500.36497495]
[1735633073282,2.6228,190.95,190.9,2.6233]
[1735633075182,2.6226,190.96,190.91,2.6232]
[1735633076777,3.14,190.98,190.87,936.57919343]
[1735633077079,3.14,190.98,190.88,2.6237]
[1735633077988,3.14,190.98,190.9,2.6234]
[1735633078485,2.6229,190.95,190.9,2.6234]
[1735633078686,3.14,190.98,190.88,2.6237]
[1735633078885,2.6232,190.92,190.88,2.6237]
[1735633079087,3.14,190.93,190.86,503.39147495]
[1735633079287,3.14,190.93,190.87,16.81037455]
[1735633079487,2.6233,190.91,190.87,4.83118728]
[1735633079681,2.6233,190.91,190.88,4.83118728]
[1735633079882,3.14,190.93,190.85,936.57919343]
[1735633080587,16.33356935,190.93,190.86,4.8454549]
[1735633080780,16.33356935,190.93,190.85,936.57919343]
[1735633080981,2.624,190.86,190.85,936.57919343]
[1735633081377,3.14,190.87,190.82,718.46946713]
[1735633081684,3.14,190.87,190.83,4.83500051]
[1735633081891,3.14,190.87,190.82,718.46946713]
[1735633082084,3.14,190.87,190.83,4.83529867]
[1735633082386,53.24468743,190.86,190.81,1.5512]
[1735633082584,53.24468743,190.86,190.82,4.26911712]
[1735633082788,53.24468743,190.86,190.83,4.83869387]
[1735633082990,55.86868743,190.86,190.83,4.83869387]
[1735633083184,55.86868743,190.86,190.84,4.83869387]
[1735633083390,84.6112307,190.85,190.81,4.1759]
[1735633083788,84.6112307,190.85,190.82,4.79111415]
[1735633084088,84.6112307,190.85,190.83,4.79111415]
[1735633084287,84.6112307,190.85,190.81,4.1759]
[1735633084485,84.6112307,190.85,190.82,4.7900052]
[1735633084692,132.83087082,190.85,190.81,4.1759]
[1735633084887,132.83087082,190.85,190.82,4.79062131]
[1735633085087,132.83087082,190.85,190.81,4.1759]
[1735633085690,132.83087082,190.85,190.81,1.5512]
[1735633085884,132.83087082,190.85,190.82,4.78877986]
[1735633086187,132.83087082,190.85,190.82,2.6245]
[1735633086188,7.28463888,190.83,190.82,2.6245]
[1735633086383,4.84253888,190.83,190.82,2.6245]
[1735633086586,4.84253888,190.83,190.82,7.4123063]
[1735633086787,2.6238,190.88,190.83,2.6244]
[1735633087090,3.14,190.89,190.81,3.1016]
[1735633087287,3.14,190.89,190.81,1.5512]
[1735633087890,13.19356935,190.87,190.81,1.5512]
[1735633088492,2.6244,190.84,190.81,1.5512]
[1735633093298,2.6244,190.84,190.75,1.5953]
[1735633093299,3.14,190.84,190.75,1.5953]
[1735633093501,0.79457865,190.83,190.76,2.6254]
[1735633093902,2.6246,190.82,190.77,2.6252]
[1735633095801,3.14,190.84,190.75,1.5953]
[1735633096000,2.6242,190.85,190.75,1.5953]
[1735633096401,2.6243,190.84,190.75,1.5953]
[1735633097403,2.6243,190.84,190.79,2.6249]
[1735633097604,2.6243,190.84,190.75,1.5953]
[1735633097804,3.14,190.86,190.77,13.19356935]
[1735633098003,3.41878859,190.85,190.8,2.6247]
[1735633098207,3.41878859,190.85,190.77,13.19356935]
[1735633098208,0.79458859,190.84,190.77,13.19356935]
[1735633098400,3.14,190.86,190.81,2.6246]
[1735633098603,87.4278192,190.97,190.8,13.19356935]
[1735633098808,3.93441623,190.96,190.81,1.5849]
[1735633099009,0.79441623,190.95,190.87,2.6239]
[1735633099411,0.79441623,190.95,190.86,13.19356935]
[1735633099607,0.79441623,190.97,190.89,13.19356935]
[1735633099805,0.79441623,190.96,190.89,13.19356935]
[1735633100008,192.50908484,190.99,190.89,13.19356935]
[1735633100310,13.98758523,190.98,190.87,3.14]
[1735633100507,0.79401588,190.97,190.87,3.14]
[1735633100808,13.19356935,190.95,190.82,3.062]
[1735633101008,3.93401588,190.94,190.82,3.062]
[1735633101314,0.79401588,190.93,190.82,3.062]
[1735633101811,13.19356935,190.92,190.82,3.062]
[1735633102014,13.19356935,190.89,190.76,16.33356935]
[1735633102203,3.93401588,190.88,190.76,16.33356935]
[1735633102406,3.14,190.88,190.76,16.33356935]
[1735633102607,0.79450415,190.87,190.76,16.33356935]
[1735633103812,3.41840415,190.87,190.76,16.33356935]
[1735633104112,2.6239,190.87,190.76,16.33356935]
[1735633104311,3.14,190.88,190.76,16.33356935]
[1735633104312,0.79451678,190.86,190.76,16.33356935]
[1735633104512,2.6241,190.85,190.76,16.33356935]
[1735633104814,3.14,190.88,190.76,16.33356935]
[1735633105110,0.79453336,190.87,190.76,16.33356935]
[1735633105314,5.7637,190.88,190.76,16.33356935]
[1735633105612,0.79453462,190.87,190.76,16.33356935]
[1735633106205,3.41843462,190.87,190.76,16.33356935]
[1735633106410,3.14,190.88,190.76,16.33356935]
[1735633106718,2.6243,190.85,190.79,2.625]
[1735633107509,2.6245,190.83,190.77,2.6251]
[1735633107709,3.93481093,190.82,190.74,3.2315]
[1735633107906,0.79483597,190.81,190.74,3.2315]
[1735633108108,3.14,190.82,190.74,3.2315]
[1735633108313,3.14,190.82,190.76,2.6254]
[1735633109417,5.7646,190.82,190.76,2.6254]
[1735633110421,3.14,190.82,190.78,2.625]
[1735633110616,3.14,190.82,190.74,3.2315]
[1735633110817,3.14,190.82,190.76,13.19356935]
[1735633111021,3.14,190.86,190.76,13.19356935]
[1735633111823,5.764,190.86,190.79,2.625]
[1735633112521,5.764,190.86,190.76,13.19356935]
[1735633112822,5.764,190.86,190.8,2.6248]
[1735633113026,3.14,190.92,190.82,13.19356935]
[1735633113225,3.14,190.92,190.87,2.6238]
[1735633113825,3.14,190.92,190.83,4.5136]
[1735633114020,5.7632,190.92,190.86,2.624]
[1735633114221,0.79430926,190.91,190.86,2.624]
[1735633114422,5.7632,190.92,190.86,2.624]
[1735633114635,3.14,190.92,190.83,4.5136]
[1735633114828,2.6235,190.9,190.84,2.6242]
[1735633115818,2.6235,190.9,190.85,2.6241]
[1735633116624,2.6233,190.91,190.83,4.5136]
[1735633117030,3.14,190.93,190.83,4.5136]
[1735633117529,0.79423309,190.92,190.83,4.5136]
[1735633118525,2.6235,190.9,190.85,2.6241]
[1735633119331,2.6233,190.92,190.83,4.5136]
[1735633119931,2.6235,190.9,190.84,2.6242]
[1735633120232,3.14,190.93,190.83,4.5136]
[1735633120529,0.79425546,190.92,190.83,4.5136]
[1735633120733,2.6233,190.91,190.86,2.624]
[1735633121332,2.6233,190.91,190.83,4.5136]
[1735633121333,3.14,190.93,190.83,4.5136]
[1735633121534,0.79427904,190.92,190.83,1.4813]
[1735633121828,0.79430052,190.91,190.83,1.4813]
[1735633122028,3.14,190.93,190.83,1.4813]
[1735633122235,2.6237,190.89,190.83,4.1057]
[1735633122431,3.14,190.88,190.83,4.1057]
[1735633123024,3.14,190.88,190.83,1.4813]
[1735633123228,3.14,190.88,190.84,2.6242]
[1735633123730,3.14,190.88,190.83,1.4813]
[1735633123934,3.14,190.88,190.79,13.19356935]
[1735633124131,0.79441482,190.87,190.79,13.19356935]
[1735633124631,2.6239,190.87,190.79,13.19356935]
[1735633125133,3.14,190.88,190.79,13.19356935]
[1735633125324,2.6239,190.86,190.81,2.6246]
[1735633126327,0.7945504,190.85,190.81,2.6246]
[1735633126724,0.7945504,190.85,190.79,13.19356935]
[1735633126922,2.6241,190.85,190.79,2.6248]
[1735633127525,2.6241,190.85,190.8,2.6247]
[1735633130231,2.6242,190.84,190.78,2.6249]
[1735633130436,3.14,190.83,190.78,2.6249]
[1735633131439,3.14,190.83,190.76,13.19356935]
[1735633132733,5.764,190.86,190.76,13.19356935]
[1735633133738,3.14,190.87,190.79,13.19356935]
[1735633135138,3.14,190.87,190.82,13.19356935]
[1735633135537,3.14,190.87,190.85,2.624]
[1735633135739,3.12,190.89,190.85,2.624]
[1735633136233,100.62138855,191.0,190.82,13.19356935]
[1735633136234,13.19356935,190.95,190.82,13.19356935]
[1735633136434,0.79437133,190.93,190.85,13.19356935]
[1735633136635,20.72059,190.97,190.83,1.5506]
[1735633136636,23.84059,190.97,190.88,13.19356935]
[1735633136840,3.41667659,190.96,190.91,2.6232]
[1735633137042,0.79417659,190.95,190.91,2.6232]
[1735633137338,0.79417659,190.94,190.88,13.19356935]
[1735633137642,26.46299,190.97,190.88,13.19356935]
[1735633137941,0.79412257,190.96,190.88,13.19356935]
[1735633138336,0.79412257,190.96,190.91,2.6231]
[1735633138738,0.79412257,190.96,190.88,13.19356935]
[1735633138940,0.79412257,190.96,190.87,2.6237]
[1735633139143,0.79412257,190.96,190.85,13.19356935]
[1735633139536,0.79416495,190.95,190.85,13.19356935]
[1735633139742,0.79416495,190.94,190.85,13.19356935]
[1735633139942,0.79416495,190.93,190.85,13.19356935]
[1735633140144,2.6229,190.94,190.87,2.6237]
[1735633140343,0.79415525,190.93,190.87,2.6237]
[1735633140546,23.84059,190.97,190.85,13.19356935]
[1735633140742,2.6229,190.94,190.88,2.6236]
[1735633140943,0.79415525,190.93,190.88,2.6236]
[1735633141147,23.84059,190.97,190.88,2.6236]
[1735633141441,1.58830518,190.96,190.85,13.19356935]
[1735633141642,0.79415259,190.95,190.85,13.19356935]
[1735633141843,0.79415259,190.95,190.84,1.4685]
[1735633142142,13.98772194,190.95,190.84,1.4685]
[1735633142343,0.79415259,190.94,190.84,1.4685]
[1735633142942,2.6233,190.91,190.85,2.6239]
[1735633143142,5.7433,190.91,190.85,2.6239]
[1735633144239,5.7433,190.91,190.84,1.4685]
[1735633144441,5.7433,190.91,190.86,2.6239]
[1735633145344,2.6233,190.91,190.86,2.6239]
[1735633145549,5.7433,190.91,190.86,2.6239]
[1735633145750,0.79428839,190.9,190.86,2.6239]
[1735633146450,3.12,190.91,190.87,2.6237]
[1735633150455,0.79428982,190.9,190.87,2.6237]
[1735633150654,3.12,190.91,190.88,2.6236]
[1735633150950,3.12,190.91,190.84,1.4685]
[1735633151155,20.72059,190.97,190.89,2.6234]
[1735633151455,3.91417166,190.96,190.84,1.4685]
[1735633151651,0.79417166,190.95,190.84,1.4685]
[1735633151957,0.79410187,190.94,190.91,2.6231]
[1735633152146,3.12,190.96,190.91,2.6231]
[1735633152350,0.79409949,190.95,190.91,2.6231]
[1735633152648,3.12,190.96,190.91,2.6231]